[Event "Late-Titled-Tuesday-Blitz-June-18-2024"]
[Site "Chess.com"]
[Date "2024.06.18"]
[Round "3"]
[White "DonJuanEGenaro"]
[Black "egnfanclub"]
[Result "0-1"]
[WhiteElo "1977"]
[BlackElo "2354"]
[TimeControl "180+1"]
[EndTime "14:29:18 PDT"]
[Termination "egnfanclub won on time"]

1. d4 {[%clk 0:02:53.2]} 1... d5 {[%clk 0:02:59.6]} 2. Nf3 {[%clk 0:02:53]} 2...
Nf6 {[%clk 0:02:59.4]} 3. c4 {[%clk 0:02:52.5]} 3... c6 {[%clk 0:02:59.3]} 4.
cxd5 {[%clk 0:02:52.3]} 4... cxd5 {[%clk 0:02:59.5]} 5. Nc3 {[%clk 0:02:52]}
5... Nc6 {[%clk 0:02:59.7]} 6. Bf4 {[%clk 0:02:51.3]} 6... Bf5 {[%clk
0:02:59.6]} 7. e3 {[%clk 0:02:50.9]} 7... e6 {[%clk 0:03:00]} 8. Be2 {[%clk
0:02:50.5]} 8... Bd6 {[%clk 0:02:55.4]} 9. Bg3 {[%clk 0:02:47.2]} 9... O-O
{[%clk 0:02:54.8]} 10. O-O {[%clk 0:02:45.5]} 10... a6 {[%clk 0:02:53.6]} 11. a3
{[%clk 0:02:44.4]} 11... Rc8 {[%clk 0:02:45]} 12. Rc1 {[%clk 0:02:39]} 12... b5
{[%clk 0:02:44.2]} 13. b4 {[%clk 0:02:37.9]} 13... Bxg3 {[%clk 0:02:39.6]} 14.
hxg3 {[%clk 0:02:36.9]} 14... Ne4 {[%clk 0:02:28.2]} 15. Nxe4 {[%clk 0:02:22.5]}
15... Bxe4 {[%clk 0:02:29.1]} 16. Nd2 {[%clk 0:02:17]} 16... Bg6 {[%clk
0:02:27.3]} 17. Nb3 {[%clk 0:02:14.4]} 17... Qb6 {[%clk 0:02:22.1]} 18. Rc5
{[%clk 0:02:11.5]} 18... Ne7 {[%clk 0:02:01.2]} 19. Qd2 {[%clk 0:02:09.9]} 19...
Nf5 {[%clk 0:02:00.4]} 20. Rfc1 {[%clk 0:02:08.2]} 20... Nd6 {[%clk 0:01:44.9]}
21. Rxc8 {[%clk 0:01:48.8]} 21... Rxc8 {[%clk 0:01:45.8]} 22. Rxc8+ {[%clk
0:01:48]} 22... Nxc8 {[%clk 0:01:45.6]} 23. Qc3 {[%clk 0:01:47.5]} 23... Nd6
{[%clk 0:01:39.3]} 24. Qc5 {[%clk 0:01:43.1]} 24... Qb8 {[%clk 0:01:35.4]} 25.
Na5 {[%clk 0:01:39.9]} 25... Nc4 {[%clk 0:01:29.9]} 26. Bxc4 {[%clk 0:01:28.7]}
26... dxc4 {[%clk 0:01:25]} 27. Nc6 {[%clk 0:01:14.9]} 27... Qb7 {[%clk
0:01:06]} 28. Qd6 {[%clk 0:00:13.3]} 28... h6 {[%clk 0:00:58.5]} 29. Qd8+ {[%clk
0:00:12.1]} 29... Kh7 {[%clk 0:00:57.6]} 30. Ne7 {[%clk 0:00:11.4]} 30... h5
{[%clk 0:00:36.8]} 31. f4 {[%clk 0:00:10.2]} 31... Kh6 {[%clk 0:00:26.7]} 0-1

[Event "Late-Titled-Tuesday-Blitz-June-18-2024"]
[Site "Chess.com"]
[Date "2024.06.18"]
[Round "3"]
[White "talaicito"]
[Black "xasid81"]
[Result "0-1"]
[WhiteElo "2300"]
[BlackElo "2573"]
[TimeControl "180+1"]
[EndTime "14:29:19 PDT"]
[Termination "xasid81 won by resignation"]

1. d4 {[%clk 0:03:00.9]} 1... h6 {[%clk 0:03:00.9]} 2. e4 {[%clk 0:02:58.8]}
2... a6 {[%clk 0:03:01.8]} 3. Nc3 {[%clk 0:02:58.5]} 3... g6 {[%clk 0:03:02.4]}
4. f4 {[%clk 0:02:58]} 4... b6 {[%clk 0:03:03]} 5. Nf3 {[%clk 0:02:57.9]} 5...
Bb7 {[%clk 0:03:03.1]} 6. Bd3 {[%clk 0:02:56.9]} 6... Bg7 {[%clk 0:03:03.7]} 7.
O-O {[%clk 0:02:56.2]} 7... d6 {[%clk 0:03:04.1]} 8. Kh1 {[%clk 0:02:56.6]} 8...
e6 {[%clk 0:03:04.3]} 9. f5 {[%clk 0:02:56.1]} 9... Ne7 {[%clk 0:03:04.2]} 10.
fxe6 {[%clk 0:02:46.1]} 10... fxe6 {[%clk 0:03:03.1]} 11. e5 {[%clk 0:02:38.3]}
11... O-O {[%clk 0:03:02]} 12. Qe2 {[%clk 0:02:23.5]} 12... d5 {[%clk
0:02:54.3]} 13. Be3 {[%clk 0:02:20.6]} 13... Nd7 {[%clk 0:02:53.5]} 14. Qd2
{[%clk 0:02:11.5]} 14... Kh7 {[%clk 0:02:48.8]} 15. Ne2 {[%clk 0:02:09.8]} 15...
Nf5 {[%clk 0:02:48.7]} 16. Nf4 {[%clk 0:02:00.3]} 16... Qe7 {[%clk 0:02:43.1]}
17. Nxg6 {[%clk 0:01:59]} 17... Kxg6 {[%clk 0:02:41.5]} 18. g4 {[%clk
0:01:59.2]} 18... Kh7 {[%clk 0:02:39.6]} 19. c3 {[%clk 0:01:50.5]} 19... c5
{[%clk 0:02:34.8]} 20. Rg1 {[%clk 0:01:46.2]} 20... Nxe5 {[%clk 0:02:11.3]} 21.
Nxe5 {[%clk 0:01:37.9]} 21... Bxe5 {[%clk 0:02:08.7]} 22. gxf5 {[%clk
0:01:29.4]} 22... exf5 {[%clk 0:02:02.3]} 23. Bxh6 {[%clk 0:01:28.3]} 23... cxd4
{[%clk 0:01:45.7]} 24. Bxf8 {[%clk 0:01:15]} 24... Rxf8 {[%clk 0:01:46.6]} 25.
Rg5 {[%clk 0:01:06.7]} 25... dxc3 {[%clk 0:01:15]} 26. Rh5+ {[%clk 0:01:06.7]}
26... Kg8 {[%clk 0:01:12.2]} 27. Rg1+ {[%clk 0:00:57.4]} 27... Bg7 {[%clk
0:01:11.4]} 28. Qf2 {[%clk 0:00:33.2]} 28... d4+ {[%clk 0:01:00.4]} 29. Rg2
{[%clk 0:00:33.2]} 29... Bxg2+ {[%clk 0:00:54.6]} 30. Kxg2 {[%clk 0:00:32.9]}
30... Rf6 {[%clk 0:00:30.8]} 31. Bc4+ {[%clk 0:00:27.6]} 31... Kf8 {[%clk
0:00:30.7]} 32. bxc3 {[%clk 0:00:20.5]} 32... Qe4+ {[%clk 0:00:25.4]} 33. Kf1
{[%clk 0:00:15.3]} 33... dxc3 {[%clk 0:00:18.6]} 34. Rh3 {[%clk 0:00:11.3]}
34... Qxc4+ {[%clk 0:00:17.8]} 0-1

[Event "Late-Titled-Tuesday-Blitz-June-18-2024"]
[Site "Chess.com"]
[Date "2024.06.18"]
[Round "3"]
[White "Msb2"]
[Black "ameetghasi100"]
[Result "1/2-1/2"]
[WhiteElo "3066"]
[BlackElo "2755"]
[TimeControl "180+1"]
[EndTime "14:29:20 PDT"]
[Termination "Game drawn by repetition"]

1. d4 {[%clk 0:03:00.9]} 1... g6 {[%clk 0:03:00.2]} 2. c4 {[%clk 0:03:01.4]}
2... Nf6 {[%clk 0:03:00.8]} 3. Nc3 {[%clk 0:03:01.3]} 3... Bg7 {[%clk
0:03:01.4]} 4. e4 {[%clk 0:03:01.5]} 4... O-O {[%clk 0:03:02]} 5. Be2 {[%clk
0:03:02]} 5... d6 {[%clk 0:03:02.6]} 6. Nf3 {[%clk 0:03:02.6]} 6... Bg4 {[%clk
0:03:02.4]} 7. Be3 {[%clk 0:03:02.4]} 7... Nfd7 {[%clk 0:03:01.3]} 8. h4 {[%clk
0:03:02.9]} 8... h5 {[%clk 0:03:01.2]} 9. Ng5 {[%clk 0:02:59.5]} 9... Bxe2
{[%clk 0:02:55.4]} 10. Qxe2 {[%clk 0:03:00.4]} 10... e5 {[%clk 0:02:55.6]} 11.
d5 {[%clk 0:02:59.1]} 11... Nf6 {[%clk 0:02:53.9]} 12. f3 {[%clk 0:02:59.1]}
12... c6 {[%clk 0:02:54.4]} 13. O-O {[%clk 0:02:55.9]} 13... c5 {[%clk
0:02:50.3]} 14. a3 {[%clk 0:02:56.1]} 14... Nbd7 {[%clk 0:02:47.7]} 15. b4
{[%clk 0:02:54.9]} 15... b6 {[%clk 0:02:48.3]} 16. Rab1 {[%clk 0:02:53.7]} 16...
Qe7 {[%clk 0:02:47]} 17. Na4 {[%clk 0:02:46.1]} 17... Rfc8 {[%clk 0:02:39.4]}
18. bxc5 {[%clk 0:02:45.3]} 18... dxc5 {[%clk 0:02:39.5]} 19. Nc3 {[%clk
0:02:43.3]} 19... Ne8 {[%clk 0:02:39.8]} 20. d6 {[%clk 0:02:26.6]} 20... Nxd6
{[%clk 0:02:21.3]} 21. Rfd1 {[%clk 0:02:23.5]} 21... Nb8 {[%clk 0:02:08.4]} 22.
Qd3 {[%clk 0:02:11.8]} 22... Nb7 {[%clk 0:02:04.7]} 23. Nb5 {[%clk 0:01:53.3]}
23... Nc6 {[%clk 0:02:00.2]} 24. Qd7 {[%clk 0:01:52]} 24... Nba5 {[%clk
0:01:47.5]} 25. Qxe7 {[%clk 0:01:30.8]} 25... Nxe7 {[%clk 0:01:47]} 26. Rd7
{[%clk 0:01:31.7]} 26... Nac6 {[%clk 0:01:40.4]} 27. Nc3 {[%clk 0:00:39.7]}
27... Rd8 {[%clk 0:01:32.8]} 28. Rbd1 {[%clk 0:00:39.9]} 28... Rxd7 {[%clk
0:01:30.2]} 29. Rxd7 {[%clk 0:00:40.8]} 29... Rd8 {[%clk 0:01:28.3]} 30. Rc7
{[%clk 0:00:40.9]} 30... Rc8 {[%clk 0:01:07.7]} 31. Rb7 {[%clk 0:00:41.2]} 31...
Rb8 {[%clk 0:01:06.8]} 32. Rd7 {[%clk 0:00:41.4]} 32... Rd8 {[%clk 0:01:06.8]}
33. Rc7 {[%clk 0:00:42]} 33... Rc8 {[%clk 0:00:51.6]} 34. Rb7 {[%clk 0:00:39.9]}
34... Rb8 {[%clk 0:00:50.2]} 35. Rc7 {[%clk 0:00:09.3]} 35... Rc8 {[%clk
0:00:17.6]} 1/2-1/2

[Event "Late-Titled-Tuesday-Blitz-June-18-2024"]
[Site "Chess.com"]
[Date "2024.06.18"]
[Round "3"]
[White "i_like_explosions"]
[Black "Chigorinetz"]
[Result "0-1"]
[WhiteElo "2417"]
[BlackElo "2613"]
[TimeControl "180+1"]
[EndTime "14:29:22 PDT"]
[Termination "Chigorinetz won on time"]

1. d4 {[%clk 0:03:00.9]} 1... d5 {[%clk 0:02:59.3]} 2. c4 {[%clk 0:03:00.6]}
2... Nc6 {[%clk 0:02:59.3]} 3. cxd5 {[%clk 0:02:55.7]} 3... Qxd5 {[%clk
0:02:58.9]} 4. e3 {[%clk 0:02:51.3]} 4... e5 {[%clk 0:02:59.3]} 5. Nc3 {[%clk
0:02:45.2]} 5... Bb4 {[%clk 0:02:59]} 6. a3 {[%clk 0:02:41.2]} 6... Bxc3+ {[%clk
0:02:58.2]} 7. bxc3 {[%clk 0:02:42.1]} 7... Nf6 {[%clk 0:02:57.5]} 8. Nf3 {[%clk
0:02:40.8]} 8... O-O {[%clk 0:02:56.4]} 9. Be2 {[%clk 0:02:00.7]} 9... e4 {[%clk
0:02:45.5]} 10. c4 {[%clk 0:01:47.9]} 10... Qa5+ {[%clk 0:02:37.4]} 11. Bd2
{[%clk 0:01:47.7]} 11... Qf5 {[%clk 0:02:31.3]} 12. Nh4 {[%clk 0:01:36.9]} 12...
Qg5 {[%clk 0:02:31]} 13. g3 {[%clk 0:01:35.3]} 13... Bh3 {[%clk 0:02:28.9]} 14.
f4 {[%clk 0:01:14.2]} 14... exf3 {[%clk 0:02:05.3]} 15. Bxf3 {[%clk 0:01:12.3]}
15... Ng4 {[%clk 0:01:15]} 16. Qe2 {[%clk 0:00:35.4]} 16... Rfe8 {[%clk
0:01:10.4]} 17. e4 {[%clk 0:00:28.2]} 17... Qh5 {[%clk 0:01:02.5]} 18. Bc3
{[%clk 0:00:28.4]} 18... a6 {[%clk 0:00:52.6]} 19. O-O-O {[%clk 0:00:26.6]}
19... b5 {[%clk 0:00:52.8]} 20. c5 {[%clk 0:00:26.1]} 20... a5 {[%clk 0:00:52]}
21. e5 {[%clk 0:00:20.3]} 21... b4 {[%clk 0:00:49.6]} 22. Bb2 {[%clk 0:00:19.7]}
22... bxa3 {[%clk 0:00:48.2]} 23. Bxa3 {[%clk 0:00:18.5]} 23... Rab8 {[%clk
0:00:48.8]} 24. Bxc6 {[%clk 0:00:15]} 24... Qh6+ {[%clk 0:00:48.9]} 25. Qd2
{[%clk 0:00:08.2]} 25... Qxc6 {[%clk 0:00:48]} 26. Rhe1 {[%clk 0:00:06.6]} 26...
Rb3 {[%clk 0:00:44.4]} 27. Bb2 {[%clk 0:00:05.8]} 27... Reb8 {[%clk 0:00:44.2]}
28. Re2 {[%clk 0:00:02.9]} 28... a4 {[%clk 0:00:42.7]} 29. Ba1 {[%clk
0:00:01.7]} 29... Qd5 {[%clk 0:00:39.8]} 30. Qc2 {[%clk 0:00:01.5]} 30... Ne3
{[%clk 0:00:36.7]} 31. Rxe3 {[%clk 0:00:02]} 31... Rxe3 {[%clk 0:00:35.9]} 32.
Qxa4 {[%clk 0:00:02.7]} 32... g5 {[%clk 0:00:32.7]} 33. Bb2 {[%clk 0:00:02.7]}
33... Re2 {[%clk 0:00:27.4]} 34. Bc3 {[%clk 0:00:01.3]} 34... Ra8 {[%clk
0:00:23.5]} 35. Qb4 {[%clk 0:00:01]} 35... Qe4 {[%clk 0:00:21.5]} 0-1

[Event "Late-Titled-Tuesday-Blitz-June-18-2024"]
[Site "Chess.com"]
[Date "2024.06.18"]
[Round "3"]
[White "newyorkmouse"]
[Black "Fandorine"]
[Result "0-1"]
[WhiteElo "2582"]
[BlackElo "2921"]
[TimeControl "180+1"]
[EndTime "14:29:23 PDT"]
[Termination "Fandorine won by checkmate"]

1. h3 {[%clk 0:03:00.9]} 1... a6 {[%clk 0:02:55.8]} 2. b3 {[%clk 0:02:58.5]}
2... a5 {[%clk 0:02:55.4]} 3. a3 {[%clk 0:02:57.9]} 3... b6 {[%clk 0:02:53.3]}
4. Bb2 {[%clk 0:02:57.9]} 4... Bb7 {[%clk 0:02:53.9]} 5. Nf3 {[%clk 0:02:57.8]}
5... Nf6 {[%clk 0:02:54.6]} 6. g3 {[%clk 0:02:57.8]} 6... Bxf3 {[%clk
0:02:54.6]} 7. exf3 {[%clk 0:02:57.5]} 7... e6 {[%clk 0:02:55.3]} 8. Bg2 {[%clk
0:02:57.2]} 8... g6 {[%clk 0:02:55.3]} 9. O-O {[%clk 0:02:56.4]} 9... Bg7 {[%clk
0:02:55.6]} 10. f4 {[%clk 0:02:56.8]} 10... d5 {[%clk 0:02:55.9]} 11. d3 {[%clk
0:02:55]} 11... O-O {[%clk 0:02:56]} 12. Nd2 {[%clk 0:02:55.2]} 12... Nbd7
{[%clk 0:02:50.7]} 13. c4 {[%clk 0:02:53.3]} 13... c6 {[%clk 0:02:50.8]} 14. Nf3
{[%clk 0:02:51.8]} 14... Rc8 {[%clk 0:02:47.7]} 15. Ne5 {[%clk 0:02:48.1]} 15...
Ne8 {[%clk 0:02:42.3]} 16. Re1 {[%clk 0:02:46]} 16... Nd6 {[%clk 0:02:36.4]} 17.
Rc1 {[%clk 0:02:37.5]} 17... Nf5 {[%clk 0:02:20.7]} 18. Qd2 {[%clk 0:02:17.1]}
18... Nc5 {[%clk 0:02:06.6]} 19. Qc2 {[%clk 0:01:47]} 19... Bxe5 {[%clk
0:01:35.7]} 20. Rxe5 {[%clk 0:01:25.5]} 20... dxc4 {[%clk 0:01:34.7]} 21. dxc4
{[%clk 0:01:13.5]} 21... Qd3 {[%clk 0:01:32.5]} 22. Be4 {[%clk 0:00:17.1]} 22...
Qxc2 {[%clk 0:01:29]} 23. Bxc2 {[%clk 0:00:18]} 23... Rfd8 {[%clk 0:01:27.6]}
24. Re2 {[%clk 0:00:16.8]} 24... Nd4 {[%clk 0:01:15.6]} 25. Bxd4 {[%clk
0:00:15.1]} 25... Rxd4 {[%clk 0:01:16.4]} 26. Ree1 {[%clk 0:00:11.7]} 26... Rcd8
{[%clk 0:01:14.9]} 27. Rcd1 {[%clk 0:00:11.2]} 27... Kf8 {[%clk 0:01:09.7]} 28.
Rxd4 {[%clk 0:00:10.8]} 28... Rxd4 {[%clk 0:01:10.6]} 29. Rd1 {[%clk 0:00:11]}
29... Rxd1+ {[%clk 0:01:07.8]} 30. Bxd1 {[%clk 0:00:11.9]} 30... Ke7 {[%clk
0:01:07]} 31. Kf1 {[%clk 0:00:11.3]} 31... Ne4 {[%clk 0:01:00.8]} 32. Bc2 {[%clk
0:00:08.9]} 32... Nd6 {[%clk 0:00:50.1]} 33. Ke2 {[%clk 0:00:08.8]} 33... Kf6
{[%clk 0:00:47.5]} 34. Kf3 {[%clk 0:00:08.1]} 34... h6 {[%clk 0:00:45.8]} 35.
Ke3 {[%clk 0:00:07.4]} 35... a4 {[%clk 0:00:40.8]} 36. Kd4 {[%clk 0:00:05.3]}
36... axb3 {[%clk 0:00:38.5]} 37. Bxb3 {[%clk 0:00:06.2]} 37... c5+ {[%clk
0:00:37.9]} 38. Kd3 {[%clk 0:00:05.4]} 38... Nf5 {[%clk 0:00:36.5]} 39. Bd1
{[%clk 0:00:02.7]} 39... Nd4 {[%clk 0:00:37]} 40. Ke4 {[%clk 0:00:02.5]} 40...
Ke7 {[%clk 0:00:35.4]} 41. Ke5 {[%clk 0:00:02]} 41... f5 {[%clk 0:00:34.4]} 42.
Ba4 {[%clk 0:00:01.4]} 42... Nf3# {[%clk 0:00:34.6]} 0-1

[Event "Late-Titled-Tuesday-Blitz-June-18-2024"]
[Site "Chess.com"]
[Date "2024.06.18"]
[Round "3"]
[White "tortorchess"]
[Black "Laico"]
[Result "0-1"]
[WhiteElo "2217"]
[BlackElo "2442"]
[TimeControl "180+1"]
[EndTime "14:29:23 PDT"]
[Termination "Laico won by resignation"]

1. d4 {[%clk 0:03:00.9]} 1... e6 {[%clk 0:03:00.5]} 2. c4 {[%clk 0:03:00.6]}
2... f5 {[%clk 0:03:01.1]} 3. Nc3 {[%clk 0:03:00.5]} 3... b6 {[%clk 0:03:01.8]}
4. g3 {[%clk 0:03:00.8]} 4... Bb7 {[%clk 0:03:01.7]} 5. Nf3 {[%clk 0:03:00.8]}
5... Bb4 {[%clk 0:03:02.4]} 6. Bg2 {[%clk 0:03:00.8]} 6... Bxc3+ {[%clk
0:03:03.1]} 7. bxc3 {[%clk 0:03:00.7]} 7... Nf6 {[%clk 0:03:04]} 8. O-O {[%clk
0:03:00.5]} 8... O-O {[%clk 0:03:04.6]} 9. Rb1 {[%clk 0:02:55.5]} 9... d6 {[%clk
0:03:00.1]} 10. a4 {[%clk 0:02:42.4]} 10... a5 {[%clk 0:02:57]} 11. Qb3 {[%clk
0:02:41.7]} 11... Be4 {[%clk 0:02:51.9]} 12. Rb2 {[%clk 0:02:40.7]} 12... Qe8
{[%clk 0:02:51.2]} 13. c5 {[%clk 0:02:36.3]} 13... bxc5 {[%clk 0:02:46.8]} 14.
dxc5 {[%clk 0:02:35.6]} 14... dxc5 {[%clk 0:02:47.3]} 15. Ng5 {[%clk 0:02:35]}
15... Bxg2 {[%clk 0:02:46.5]} 16. Kxg2 {[%clk 0:02:35]} 16... Qc6+ {[%clk
0:02:42]} 17. f3 {[%clk 0:02:34.3]} 17... Re8 {[%clk 0:02:42.5]} 18. Bf4 {[%clk
0:02:30.6]} 18... h6 {[%clk 0:02:38.9]} 19. Nh3 {[%clk 0:02:28.5]} 19... Nd5
{[%clk 0:02:38.6]} 20. Rd1 {[%clk 0:02:18.5]} 20... Nd7 {[%clk 0:02:36.1]} 21.
e4 {[%clk 0:02:12.9]} 21... fxe4 {[%clk 0:02:34.6]} 22. fxe4 {[%clk 0:02:03.5]}
22... Nxf4+ {[%clk 0:02:22.2]} 23. Nxf4 {[%clk 0:02:04]} 23... Qxe4+ {[%clk
0:02:22.1]} 24. Kg1 {[%clk 0:02:01.4]} 24... Ne5 {[%clk 0:02:22.1]} 25. Re2
{[%clk 0:01:53.9]} 25... Qf5 {[%clk 0:01:57.3]} 26. Kg2 {[%clk 0:01:51.7]} 26...
g5 {[%clk 0:01:46.2]} 27. Rde1 {[%clk 0:01:44.5]} 27... c4 {[%clk 0:01:29.5]}
28. Qb7 {[%clk 0:01:26]} 28... Nd3 {[%clk 0:00:45.1]} 29. Nxd3 {[%clk
0:01:12.6]} 29... cxd3 {[%clk 0:00:46]} 30. Re5 {[%clk 0:01:08.9]} 30... d2
{[%clk 0:00:44]} 31. Qxc7 {[%clk 0:00:43.7]} 31... dxe1=Q {[%clk 0:00:35.3]} 32.
Rxe1 {[%clk 0:00:44.6]} 32... Rf8 {[%clk 0:00:31.2]} 33. Qb6 {[%clk 0:00:24.2]}
33... Rab8 {[%clk 0:00:21.6]} 34. Qd4 {[%clk 0:00:18.6]} 34... Rb2+ {[%clk
0:00:18.4]} 35. Kg1 {[%clk 0:00:18.7]} 35... Qh3 {[%clk 0:00:16.8]} 0-1

[Event "Late-Titled-Tuesday-Blitz-June-18-2024"]
[Site "Chess.com"]
[Date "2024.06.18"]
[Round "3"]
[White "sudtirolese06"]
[Black "EmmaChess"]
[Result "1-0"]
[WhiteElo "2471"]
[BlackElo "2629"]
[TimeControl "180+1"]
[EndTime "14:29:26 PDT"]
[Termination "sudtirolese06 won on time"]

1. d4 {[%clk 0:03:00.9]} 1... Nf6 {[%clk 0:02:58.5]} 2. Bf4 {[%clk 0:03:00.3]}
2... b6 {[%clk 0:02:57.9]} 3. e3 {[%clk 0:02:58.8]} 3... Bb7 {[%clk 0:02:57.4]}
4. Nf3 {[%clk 0:02:58.2]} 4... g6 {[%clk 0:02:57.2]} 5. Nbd2 {[%clk 0:02:55.5]}
5... Bg7 {[%clk 0:02:53]} 6. Bd3 {[%clk 0:02:55.6]} 6... O-O {[%clk 0:02:53.1]}
7. h3 {[%clk 0:02:54.4]} 7... d6 {[%clk 0:02:53.3]} 8. O-O {[%clk 0:02:52.7]}
8... Nc6 {[%clk 0:02:53.3]} 9. Bh2 {[%clk 0:02:53.2]} 9... Nd7 {[%clk
0:02:47.8]} 10. c3 {[%clk 0:02:52.9]} 10... e5 {[%clk 0:02:47.5]} 11. d5 {[%clk
0:02:50.2]} 11... Ne7 {[%clk 0:02:47.4]} 12. e4 {[%clk 0:02:50.3]} 12... Bh6
{[%clk 0:02:38.5]} 13. c4 {[%clk 0:02:48.9]} 13... a5 {[%clk 0:02:37.8]} 14. b3
{[%clk 0:02:48.3]} 14... f5 {[%clk 0:02:35]} 15. a3 {[%clk 0:02:47.4]} 15... Nc5
{[%clk 0:02:32.5]} 16. Bc2 {[%clk 0:02:46.6]} 16... Bc8 {[%clk 0:02:32.3]} 17.
b4 {[%clk 0:02:44.1]} 17... fxe4 {[%clk 0:02:29.6]} 18. Nxe4 {[%clk 0:02:40]}
18... Nxe4 {[%clk 0:02:24.1]} 19. Bxe4 {[%clk 0:02:40.9]} 19... Bf5 {[%clk
0:02:18.6]} 20. Qd3 {[%clk 0:02:30.4]} 20... Bf4 {[%clk 0:01:49.8]} 21. Rfd1
{[%clk 0:02:24.4]} 21... Bxe4 {[%clk 0:01:46.7]} 22. Qxe4 {[%clk 0:02:25.3]}
22... Bxh2+ {[%clk 0:01:47.1]} 23. Kxh2 {[%clk 0:02:25.4]} 23... Rf4 {[%clk
0:01:47.3]} 24. Qe3 {[%clk 0:02:25.5]} 24... Nf5 {[%clk 0:01:47.2]} 25. Qe2
{[%clk 0:02:24.6]} 25... axb4 {[%clk 0:01:14.1]} 26. axb4 {[%clk 0:02:23]} 26...
Rxa1 {[%clk 0:01:15]} 27. Rxa1 {[%clk 0:02:23.4]} 27... e4 {[%clk 0:00:41.2]}
28. Ne1 {[%clk 0:02:03]} 28... Qe8 {[%clk 0:00:31.2]} 29. g3 {[%clk 0:02:00.9]}
29... Nd4 {[%clk 0:00:31.1]} 30. Qe3 {[%clk 0:01:58.2]} 30... Nf3+ {[%clk
0:00:31]} 31. Kh1 {[%clk 0:01:48.3]} 31... Rf8 {[%clk 0:00:21.3]} 32. Nxf3
{[%clk 0:01:41.5]} 32... Rxf3 {[%clk 0:00:14.8]} 33. Qe2 {[%clk 0:01:41.4]}
33... Qf7 {[%clk 0:00:14.2]} 34. Kg2 {[%clk 0:01:41.2]} 34... Qf5 {[%clk
0:00:06.8]} 35. Ra8+ {[%clk 0:01:33.1]} 35... Kg7 {[%clk 0:00:06.3]} 36. Re8
{[%clk 0:01:33]} 36... e3 {[%clk 0:00:04.4]} 37. Rxe3 {[%clk 0:01:32.5]} 37...
Rxe3 {[%clk 0:00:04]} 38. Qxe3 {[%clk 0:01:33.4]} 38... b5 {[%clk 0:00:02.1]}
39. Qe7+ {[%clk 0:01:29.2]} 39... Kh6 {[%clk 0:00:02.7]} 40. Qxc7 {[%clk
0:01:24.1]} 40... Qe4+ {[%clk 0:00:02.5]} 41. Kh2 {[%clk 0:01:21.2]} 41... Qf3
{[%clk 0:00:02.7]} 42. Kg1 {[%clk 0:01:15.8]} 42... Qd1+ {[%clk 0:00:01.9]} 43.
Kg2 {[%clk 0:01:16.4]} 43... Qd4 {[%clk 0:00:02.1]} 44. cxb5 {[%clk 0:01:11.7]}
44... Qxd5+ {[%clk 0:00:02.3]} 45. Kh2 {[%clk 0:01:07.5]} 45... Qd2 {[%clk
0:00:02.9]} 46. Kg2 {[%clk 0:00:58]} 46... Qd5+ {[%clk 0:00:01.8]} 47. Kg1
{[%clk 0:00:55.5]} 47... Qd1+ {[%clk 0:00:02.4]} 48. Kh2 {[%clk 0:00:55.5]}
48... Qd2 {[%clk 0:00:02.5]} 49. Qb6 {[%clk 0:00:55.7]} 49... d5 {[%clk
0:00:02.3]} 50. Qe3+ {[%clk 0:00:54]} 50... Qxe3 {[%clk 0:00:01.2]} 51. fxe3
{[%clk 0:00:54.9]} 51... d4 {[%clk 0:00:01.6]} 52. exd4 {[%clk 0:00:55.2]} 1-0

[Event "Late-Titled-Tuesday-Blitz-June-18-2024"]
[Site "Chess.com"]
[Date "2024.06.18"]
[Round "3"]
[White "divudis17"]
[Black "olakenn"]
[Result "1-0"]
[WhiteElo "2343"]
[BlackElo "1862"]
[TimeControl "180+1"]
[EndTime "14:29:27 PDT"]
[Termination "divudis17 won by resignation"]

1. Nf3 {[%clk 0:03:00.9]} 1... d5 {[%clk 0:02:58.6]} 2. e3 {[%clk 0:02:59.9]}
2... c6 {[%clk 0:02:59.1]} 3. c4 {[%clk 0:02:57.3]} 3... Bg4 {[%clk 0:02:56.4]}
4. Nc3 {[%clk 0:02:36.2]} 4... e6 {[%clk 0:02:52.8]} 5. Qb3 {[%clk 0:02:33.9]}
5... Qb6 {[%clk 0:02:44.1]} 6. Ne5 {[%clk 0:02:31.7]} 6... Qxb3 {[%clk
0:02:39.5]} 7. axb3 {[%clk 0:02:31.2]} 7... Bf5 {[%clk 0:02:38.7]} 8. Bd3 {[%clk
0:02:18.5]} 8... Bxd3 {[%clk 0:02:37.4]} 9. Nxd3 {[%clk 0:02:19.4]} 9... Nf6
{[%clk 0:02:34.1]} 10. Ne5 {[%clk 0:02:18.6]} 10... Nbd7 {[%clk 0:02:32.9]} 11.
Nxd7 {[%clk 0:02:17.7]} 11... Nxd7 {[%clk 0:02:32.2]} 12. d4 {[%clk 0:02:18.6]}
12... Bb4 {[%clk 0:02:30.6]} 13. Bd2 {[%clk 0:02:18.2]} 13... a6 {[%clk
0:02:25.6]} 14. c5 {[%clk 0:02:14.4]} 14... Bxc3 {[%clk 0:02:25]} 15. bxc3
{[%clk 0:02:03.8]} 15... Nf6 {[%clk 0:02:24.1]} 16. f3 {[%clk 0:02:03.3]} 16...
h5 {[%clk 0:02:22.7]} 17. Ke2 {[%clk 0:02:01.8]} 17... h4 {[%clk 0:02:22.9]} 18.
g4 {[%clk 0:02:00.7]} 18... hxg3 {[%clk 0:02:21.5]} 19. hxg3 {[%clk 0:02:01.6]}
19... Ke7 {[%clk 0:02:21.4]} 20. g4 {[%clk 0:02:00.7]} 20... Nd7 {[%clk
0:02:16.1]} 21. c4 {[%clk 0:01:54.2]} 21... Rag8 {[%clk 0:02:11.7]} 22. Ba5
{[%clk 0:01:46.5]} 22... g6 {[%clk 0:02:08.7]} 23. Bc7 {[%clk 0:01:45.6]} 23...
Rc8 {[%clk 0:01:59.4]} 24. Bd6+ {[%clk 0:01:44.6]} 24... Kf6 {[%clk 0:01:57.1]}
25. Kf2 {[%clk 0:01:25]} 25... Kg7 {[%clk 0:01:55.9]} 26. Kg2 {[%clk 0:01:13]}
26... Rxh1 {[%clk 0:01:49.6]} 27. Kxh1 {[%clk 0:01:11.3]} 27... Rh8+ {[%clk
0:01:48.7]} 28. Kg2 {[%clk 0:01:11.2]} 28... Rh7 {[%clk 0:01:46.2]} 29. Ra4
{[%clk 0:01:11.6]} 29... Rh8 {[%clk 0:01:38.9]} 30. Rb4 {[%clk 0:01:11.1]} 30...
b5 {[%clk 0:01:04.3]} 31. cxb6 {[%clk 0:01:03.6]} 31... a5 {[%clk 0:00:58.2]}
32. Ra4 {[%clk 0:00:56.1]} 32... Nxb6 {[%clk 0:00:50]} 33. Rxa5 {[%clk
0:00:56.3]} 33... dxc4 {[%clk 0:00:45.1]} 34. Be5+ {[%clk 0:00:43.9]} 34... f6
{[%clk 0:00:44.2]} 35. Ra7+ {[%clk 0:00:44]} 35... Kh6 {[%clk 0:00:33.6]} 36.
Bxf6 {[%clk 0:00:38.3]} 36... Nc8 {[%clk 0:00:14.8]} 37. Rc7 {[%clk 0:00:16.4]}
1-0